fUSD/lending_fUSD_20260203
["ID","MTS","AMOUNT","RATE_DAILY","PERIOD"]
[404362121,1770077088540,-7730.37289355,9.234e-05,2]
[404362122,1770077088677,-10000.01,9.234e-05,2]
[404362123,1770077091581,-10000.01,9.234e-05,2]
[404362124,1770077091602,-8581.16710645,9.234e-05,2]
[404362125,1770077125333,10000.01,9.09e-05,2]
[404362126,1770077125366,4888.87,9.09e-05,2]
[404362127,1770077165868,1604.38,9.075e-05,2]
[404362128,1770077167812,2680.178441,7.945e-05,2]
[404362129,1770077194163,826.581559,9.05e-05,2]
[404362130,1770077194193,4670.948441,9.05e-05,2]
[404362132,1770077313158,1000.0,8.998e-05,2]
[404362133,1770077380109,2909.25,8.998e-05,2]
[404362138,1770077431794,-609.8984744,9.448e-05,2]
[404362139,1770077431850,-287.0,9.448e-05,2]
[404362140,1770077431864,-703.1015256,9.448e-05,2]
[404362141,1770077431873,-228.0,9.448e-05,2]
[404362142,1770077431882,-300.0,9.549e-05,2]
[404362143,1770077431891,-250.0,9.651e-05,2]
[404362144,1770077431900,-300.0,9.74e-05,2]
[404362145,1770077431909,-500.0,9.75e-05,2]
[404362146,1770077431919,-500.0,9.75e-05,2]
[404362147,1770077431927,-150.0,9.75e-05,2]
[404362148,1770077431936,-500.0,9.75e-05,2]
[404362149,1770077431946,-500.0,9.75e-05,2]
[404362150,1770077431955,-514.0,9.75e-05,2]
[404362151,1770077431964,-500.0,9.75e-05,2]
[404362152,1770077431973,-150.0,9.75e-05,2]
[404362153,1770077431983,-500.0,9.805e-05,2]
[404362154,1770077431992,-500.0,9.805e-05,2]
[404362155,1770077432002,-500.0,9.805e-05,2]
[404362156,1770077432012,-500.0,9.805e-05,2]
[404362157,1770077432021,-514.0,9.805e-05,2]
[404362158,1770077432030,-280.77982564,9.805e-05,2]
[404362159,1770077432046,-219.22017436,9.805e-05,2]
[404362160,1770077432056,-280.77982564,9.854e-05,2]
[404362161,1770077432067,-2076.57116541,9.854e-05,2]
[404362189,1770077437960,-580.73900895,9.854e-05,2]
[404362190,1770077437970,-500.0,9.86e-05,2]
[404362191,1770077437979,-500.0,9.86e-05,2]
[404362192,1770077437988,-500.0,9.86e-05,2]
[404362193,1770077437997,-473.24705519,9.86e-05,2]
[404362194,1770077438103,-26.75294481,9.86e-05,2]
[404362195,1770077438112,-514.0,9.86e-05,2]
[404362196,1770077438122,-500.0,9.86e-05,2]
[404362197,1770077438132,-150.0,9.873e-05,2]
[404362198,1770077438141,-159.79505519,9.873e-05,2]
[404362199,1770077438153,-140.20494481,9.873e-05,2]
[404362200,1770077438162,-235.37757288,9.873e-05,2]
[404362201,1770077438174,-64.62242712,9.873e-05,2]
[404362202,1770077438183,-300.0,9.873e-05,2]
[404362203,1770077438193,-1200.0,9.873e-05,2]
[404362204,1770077438202,-500.0,9.874e-05,2]
[404362205,1770077438211,-500.0,9.874e-05,2]
[404362206,1770077438221,-500.0,9.874e-05,2]
[404362207,1770077438230,-500.0,9.874e-05,2]
[404362208,1770077438240,-500.0,9.874e-05,2]
[404362209,1770077438250,-500.0,9.874e-05,2]
[404362210,1770077438260,-500.0,9.874e-05,2]
[404362211,1770077438269,-500.0,9.874e-05,2]
[404362212,1770077438278,-500.0,9.874e-05,2]
[404362213,1770077438289,-500.0,9.874e-05,2]
[404362214,1770077438298,-500.0,9.874e-05,2]
[404362215,1770077438308,-500.0,9.874e-05,2]
[404362216,1770077438318,-500.0,9.874e-05,2]
[404362217,1770077438327,-500.0,9.874e-05,2]
[404362218,1770077438337,-500.0,9.874e-05,2]
[404362219,1770077438347,-500.0,9.874e-05,2]
[404362220,1770077438356,-500.0,9.874e-05,2]
[404362221,1770077438365,-500.0,9.874e-05,2]
[404362222,1770077438374,-500.0,9.874e-05,2]
[404362223,1770077438384,-500.0,9.874e-05,2]
[404362224,1770077438393,-500.0,9.874e-05,2]
[404362225,1770077438402,-500.0,9.874e-05,2]
[404362226,1770077438412,-500.0,9.874e-05,2]
[404362228,1770077438421,-500.0,9.874e-05,2]
[404362230,1770077438430,-500.0,9.874e-05,2]
[404362232,1770077438439,-174.04924007,9.874e-05,2]
[404362234,1770077438449,-2938.09,9.88e-05,2]
[404362236,1770077438458,-2938.09,9.906e-05,2]
[404362238,1770077438467,-500.0,9.914e-05,2]
[404362239,1770077438477,-500.0,9.914e-05,2]
[404362241,1770077438486,-500.0,9.914e-05,2]
[404362244,1770077438496,-500.0,9.914e-05,2]
[404362246,1770077438506,-514.0,9.914e-05,2]
[404362248,1770077438515,-500.0,9.914e-05,2]
[404362249,1770077438525,-202.0,9.915e-05,2]
[404362251,1770077438536,-2938.09,9.932e-05,2]
[404362254,1770077438546,-500.0,9.947e-05,2]
[404362256,1770077438555,-150.0,9.947e-05,2]
[404362257,1770077438565,-2938.09,9.957e-05,2]
[404362259,1770077438575,-407.0,9.963e-05,2]
[404362261,1770077438584,-30092.54076565,9.964e-05,2]
[404362263,1770077438594,-377.0,9.968e-05,2]
[404362266,1770077438603,-500.0,9.969e-05,2]
[404362267,1770077438611,-500.0,9.969e-05,2]
[404362270,1770077438621,-315.90463653,9.969e-05,2]
[404362272,1770077438630,-500.0,9.969e-05,2]
[404362274,1770077438639,-514.0,9.969e-05,2]
[404362276,1770077438649,-500.0,9.969e-05,2]
[404362278,1770077438658,-151.0,9.971e-05,2]
[404362280,1770077438667,-500.0,9.973e-05,2]
[404362282,1770077438676,-316.35054945,9.973e-05,2]
[404362283,1770077438685,-500.0,9.973e-05,2]
[404362284,1770077438694,-265.51097837,9.973e-05,2]
[404362285,1770077438714,-500.0,9.973e-05,2]
[404362286,1770077438724,-500.0,9.973e-05,2]
[404362287,1770077438734,-580.00632476,9.973e-05,2]
[404362288,1770077438744,-695.27824435,9.973e-05,2]
[404362289,1770077438755,-695.27824435,9.973e-05,2]
[404362290,1770077438766,-695.27824435,9.973e-05,2]
[404362291,1770077438776,-695.27824435,9.973e-05,2]
[404362292,1770077438791,-695.27824435,9.973e-05,2]
[404362293,1770077438800,-695.27824435,9.973e-05,2]
[404362294,1770077438810,-695.27824435,9.973e-05,2]
[404362295,1770077438821,-695.27824435,9.973e-05,2]
[404362296,1770077438831,-695.27824435,9.973e-05,2]
[404362297,1770077438841,-695.27824435,9.973e-05,2]
[404362298,1770077438852,-695.27824435,9.973e-05,2]
[404362299,1770077438862,-695.27824435,9.973e-05,2]
[404362300,1770077438872,-695.27824435,9.973e-05,2]
[404362301,1770077438882,-695.27824435,9.973e-05,2]
[404362302,1770077438892,-695.27824435,9.973e-05,2]
[404362303,1770077438902,-500.0,9.973e-05,2]
[404362304,1770077438911,-500.0,9.973e-05,2]
[404362305,1770077438922,-695.27824435,9.973e-05,2]
[404362306,1770077438932,-500.0,9.973e-05,2]
[404362307,1770077438944,-500.0,9.973e-05,2]
[404362308,1770077438954,-500.0,9.973e-05,2]
[404362309,1770077438964,-500.0,9.973e-05,2]
[404362310,1770077438973,-500.0,9.973e-05,2]
[404362311,1770077438983,-695.27824435,9.973e-05,2]
[404362312,1770077438992,-500.0,9.973e-05,2]
[404362313,1770077439002,-500.0,9.973e-05,2]
[404362314,1770077439012,-500.0,9.973e-05,2]
[404362315,1770077439022,-500.0,9.973e-05,2]
[404362316,1770077439031,-500.0,9.973e-05,2]
[404362317,1770077439044,-500.0,9.973e-05,2]
[404362318,1770077439054,-500.0,9.973e-05,2]
[404362319,1770077439064,-500.0,9.973e-05,2]
[404362320,1770077439074,-500.0,9.973e-05,2]
[404362321,1770077439088,-500.0,9.973e-05,2]
[404362322,1770077439098,-500.0,9.973e-05,2]
[404362323,1770077439108,-500.0,9.973e-05,2]
[404362324,1770077439118,-500.0,9.973e-05,2]
[404362325,1770077439128,-500.0,9.973e-05,2]
[404362326,1770077439138,-500.0,9.973e-05,2]
[404362327,1770077439149,-515.7256343,9.973e-05,2]
[404362328,1770077439159,-500.0,9.973e-05,2]
[404362329,1770077439168,-500.0,9.973e-05,2]
[404362330,1770077439178,-500.0,9.973e-05,2]
[404362331,1770077439188,-500.0,9.973e-05,2]
[404362332,1770077439197,-500.0,9.973e-05,2]
[404362333,1770077439207,-500.0,9.973e-05,2]
[404362334,1770077439218,-500.0,9.973e-05,2]
[404362335,1770077439227,-500.0,9.973e-05,2]
[404362336,1770077439237,-500.0,9.973e-05,2]
[404362337,1770077439247,-500.0,9.973e-05,2]
[404362338,1770077439257,-500.0,9.973e-05,2]
[404362339,1770077439271,-500.0,9.973e-05,2]
[404362340,1770077439281,-500.0,9.973e-05,2]
[404362341,1770077439292,-714.83448943,9.973e-05,2]
[404362342,1770077439302,-714.83448943,9.973e-05,2]
[404362343,1770077439312,-714.83448943,9.973e-05,2]
[404362344,1770077439322,-714.83448943,9.973e-05,2]
[404362345,1770077439332,-714.83448943,9.973e-05,2]
[404362346,1770077439343,-714.83448943,9.973e-05,2]
[404362347,1770077439353,-714.83448943,9.973e-05,2]
[404362348,1770077439363,-714.83448943,9.973e-05,2]
[404362349,1770077439372,-714.83448943,9.973e-05,2]
[404362350,1770077439382,-714.83448943,9.973e-05,2]
[404362351,1770077439391,-714.83448943,9.973e-05,2]
[404362352,1770077439401,-714.83448943,9.973e-05,2]
[404362353,1770077439411,-714.83448943,9.973e-05,2]
[404362354,1770077439421,-714.83448943,9.973e-05,2]
[404362355,1770077439431,-714.83448943,9.973e-05,2]
[404362356,1770077439441,-714.83448943,9.973e-05,2]
[404362357,1770077439450,-714.83448943,9.973e-05,2]
[404362358,1770077439460,-714.83448943,9.973e-05,2]
[404362359,1770077439470,-714.83448943,9.973e-05,2]
[404362360,1770077439479,-714.83448943,9.973e-05,2]
[404362361,1770077439489,-714.83448943,9.973e-05,2]
[404362362,1770077439498,-714.83448943,9.973e-05,2]
[404362363,1770077439508,-714.83448943,9.973e-05,2]
[404362364,1770077439518,-714.83448943,9.973e-05,2]
[404362365,1770077439528,-714.83448943,9.973e-05,2]
[404362366,1770077439538,-726.74839758,9.973e-05,2]
[404362367,1770077439549,-726.74839758,9.973e-05,2]
[404362368,1770077439558,-726.74839758,9.973e-05,2]
[404362369,1770077439568,-726.74839758,9.973e-05,2]
[404362370,1770077439577,-726.74839758,9.973e-05,2]
[404362371,1770077439587,-726.74839758,9.973e-05,2]
[404362372,1770077439597,-726.74839758,9.973e-05,2]
[404362373,1770077439606,-726.74839758,9.973e-05,2]
[404362374,1770077439616,-726.74839758,9.973e-05,2]
[404362375,1770077439626,-726.74839758,9.973e-05,2]
[404362376,1770077439640,-3500000.0,9.974e-05,2]
[404362377,1770077439649,-434.0,9.983e-05,2]
[404362378,1770077439660,-171.9502768,9.983e-05,2]
[404362379,1770077439669,-2602.29944508,9.983e-05,2]
[404362380,1770077439679,-2938.09,9.983e-05,2]
[404362381,1770077439688,-211.71017853,0.0001,2]
[404362382,1770077439698,-211.71017853,0.0001,2]
[404362383,1770077439707,-211.71017853,0.0001,2]
[404362384,1770077439717,-150.99,0.0001,2]
[404362385,1770077439727,-9999.99,0.0001,2]
[404362386,1770077439737,-9999.99,0.0001,2]
[404362387,1770077439747,-9999.99,0.0001,2]
[404362388,1770077439756,-4999.99,0.0001,2]
[404362389,1770077439766,-299.99,0.0001,2]
[404362390,1770077439778,-499.99,0.0001,2]
[404362391,1770077439791,-9999.99,0.0001,2]
[404362392,1770077439801,-9999.99,0.0001,2]
[404362393,1770077439811,-999.99,0.0001,2]
[404362394,1770077439822,-150.99,0.0001,2]
[404362395,1770077439831,-150.00591927,0.0001,2]
[404362396,1770077439845,-1379.17071038,0.0001,2]
[404362397,1770077439855,-1379.17071038,0.0001,2]
[404362398,1770077439865,-209.0,0.0001,2]
[404362399,1770077439875,-209.0,0.0001,2]
[404362400,1770077439884,-500.0,0.00010002,2]
[404362401,1770077439893,-2938.09,0.00010009,2]
[404362403,1770077439903,-616.0,0.00010011,2]
[404362404,1770077439913,-211.0,0.00010011,2]
[404362405,1770077439922,-500.0,0.00010024,2]
[404362406,1770077439931,-500.0,0.00010024,2]
[404362407,1770077439941,-500.0,0.00010024,2]
[404362408,1770077439950,-514.0,0.00010024,2]
[404362409,1770077439960,-500.0,0.00010024,2]
[404362410,1770077439970,-2938.09,0.00010035,2]
[404362411,1770077439980,-500.0,0.00010057,2]
[404362412,1770077439990,-3609.8019406,0.00010057,2]
[404362413,1770077440000,-13342.160203,0.00010057,2]
[404362414,1770077440010,-23567.9346056,0.00010057,2]
[404362415,1770077440021,-2938.09,0.00010061,2]
[404362416,1770077440032,-200.0,0.00010068,2]
[404362417,1770077440046,-500.0,0.00010074,2]
[404362418,1770077440056,-501.31844292,0.00010074,2]
[404362419,1770077440068,-500.0,0.00010074,2]
[404362420,1770077440079,-500.0,0.00010074,2]
[404362421,1770077440091,-500.0,0.00010074,2]
[404362422,1770077440102,-500.0,0.00010074,2]
[404362423,1770077440115,-500.0,0.00010074,2]
[404362424,1770077440125,-500.0,0.00010074,2]
[404362425,1770077440135,-500.0,0.00010074,2]
[404362426,1770077440145,-168.13382401,0.00010074,2]
[404362427,1770077440155,-164.14571343,0.00010074,2]
[404362428,1770077440164,-500.91194722,0.00010074,2]
[404362429,1770077440174,-500.0,0.00010074,2]
[404362430,1770077440184,-500.0,0.00010074,2]
[404362431,1770077440193,-500.0,0.00010074,2]
[404362432,1770077440204,-500.0,0.00010074,2]
[404362433,1770077440213,-500.0,0.00010074,2]
[404362434,1770077440223,-163.90719075,0.00010074,2]
[404362435,1770077440235,-500.0,0.00010074,2]
[404362436,1770077440246,-500.0,0.00010074,2]
[404362437,1770077440256,-500.0,0.00010074,2]
[404362438,1770077440266,-500.0,0.00010074,2]
[404362439,1770077440275,-500.0,0.00010074,2]
[404362440,1770077440285,-500.0,0.00010074,2]
[404362441,1770077440295,-500.0,0.00010074,2]
[404362442,1770077440304,-239.65788203,0.00010074,2]
[404362443,1770077440314,-500.0,0.00010074,2]
[404362444,1770077440324,-500.0,0.00010074,2]
[404362445,1770077440334,-500.0,0.00010074,2]
[404362446,1770077440344,-500.0,0.00010074,2]
[404362447,1770077440355,-500.0,0.00010074,2]
[404362448,1770077440364,-500.0,0.00010074,2]
[404362449,1770077440374,-163.07853281,0.00010074,2]
[404362450,1770077440384,-500.0,0.00010074,2]
[404362451,1770077440394,-500.0,0.00010074,2]
[404362452,1770077440404,-166.29434153,0.00010074,2]
[404362453,1770077440413,-500.0,0.00010074,2]
[404362454,1770077440423,-500.0,0.00010074,2]
[404362455,1770077440432,-500.0,0.00010074,2]
[404362456,1770077440442,-500.0,0.00010074,2]
[404362457,1770077440452,-500.0,0.00010074,2]
[404362458,1770077440462,-500.0,0.00010079,2]
[404362459,1770077440471,-500.0,0.00010079,2]
[404362460,1770077440480,-500.0,0.00010079,2]
[404362462,1770077440490,-514.0,0.00010079,2]
[404362464,1770077440499,-500.0,0.00010079,2]
[404362465,1770077440508,-2938.09,0.00010087,2]
[404362466,1770077440518,-151.0,0.00010101,2]
[404362467,1770077440528,-211.2260097,0.00010101,2]
[404362469,1770077440539,-200.0,0.00010111,2]
[404362471,1770077440548,-2938.09,0.00010113,2]
[404362473,1770077440557,-1000.0,0.00010123,2]
[404362475,1770077440567,-500.0,0.00010134,2]
[404362477,1770077440576,-500.0,0.00010134,2]
[404362478,1770077440586,-500.0,0.00010134,2]
[404362479,1770077440596,-514.0,0.00010134,2]
[404362480,1770077440605,-500.0,0.00010134,2]
[404362481,1770077440615,-2938.09,0.00010139,2]
[404362482,1770077440631,-241.5,0.00010162,2]
[404362483,1770077440644,-2938.09,0.00010165,2]
[404362484,1770077440654,-500.0,0.00010188,2]
[404362486,1770077440664,-500.0,0.00010188,2]
[404362488,1770077440674,-500.0,0.00010188,2]
[404362490,1770077440684,-514.0,0.00010188,2]
[404362521,1770077440950,-500.0,0.00010188,2]
[404362524,1770077440978,-2938.09,0.00010191,2]
[404362526,1770077440987,-2938.09,0.00010217,2]
[404362527,1770077440997,-2938.09,0.00010243,2]
[404362529,1770077441006,-500.0,0.00010243,2]
[404362531,1770077441016,-598.11793972,0.00010243,2]
[404362533,1770077441026,-500.0,0.00010243,2]
[404362535,1770077441036,-514.0,0.00010243,2]
[404362537,1770077441047,-500.0,0.00010243,2]
[404362539,1770077441056,-500.0,0.00010247,2]
[404362541,1770077441065,-2938.09,0.00010268,2]
[404362543,1770077441075,-7803.81,0.00010284,2]
[404362545,1770077441084,-2938.09,0.00010294,2]
[404362547,1770077441093,-586.0,0.00010298,2]
[404362549,1770077441103,-500.0,0.00010298,2]
[404362551,1770077441113,-514.0,0.00010298,2]
[404362553,1770077441122,-500.0,0.00010298,2]
[404362555,1770077441132,-2938.09,0.0001032,2]
[404362557,1770077441142,-211.48188221,0.00010327,2]
[404362559,1770077441151,-2938.09,0.00010346,2]
[404362561,1770077441160,-500.0,0.00010353,2]
[404362563,1770077441170,-514.0,0.00010353,2]
[404362565,1770077441181,-500.0,0.00010353,2]
[404362567,1770077441190,-300.0,0.00010392,2]
[404362569,1770077441200,-250.0,0.00010392,2]
[404362571,1770077441209,-300.0,0.00010392,2]
[404362573,1770077441219,-250.0,0.00010392,2]
[404362574,1770077441228,-300.0,0.00010392,2]
[404362576,1770077441238,-500.0,0.00010408,2]
[404362578,1770077441247,-514.0,0.00010408,2]
[404362580,1770077441256,-500.0,0.00010408,2]
[404362582,1770077441265,-166.66,0.00010415,2]
[404362584,1770077441274,-500.0,0.00010462,2]
[404362586,1770077441284,-514.0,0.00010462,2]
[404362588,1770077441294,-500.0,0.00010462,2]
[404362590,1770077441304,-1444.14,0.00010475,2]
[404362592,1770077441313,-3522.37,0.00010475,2]
[404362594,1770077441323,-500.0,0.00010517,2]
[404362595,1770077441332,-514.0,0.00010517,2]
[404362597,1770077441343,-500.0,0.00010517,2]
[404362598,1770077441352,-500.0,0.00010521,2]
[404362599,1770077441361,-500.0,0.00010572,2]
[404362600,1770077441371,-514.0,0.00010572,2]
[404362601,1770077441380,-500.0,0.00010572,2]
[404362602,1770077441389,-151.0,0.00010616,2]
[404362603,1770077441398,-151.0,0.00010616,2]
[404362604,1770077441408,-151.0,0.00010616,2]
[404362605,1770077441417,-151.0,0.00010616,2]
[404362606,1770077441427,-151.0,0.00010616,2]
[404362607,1770077441437,-151.0,0.00010616,2]
[404362608,1770077441448,-151.0,0.00010616,2]
[404362609,1770077441458,-151.0,0.00010616,2]
[404362610,1770077441468,-151.0,0.00010616,2]
[404362611,1770077441478,-151.0,0.00010616,2]
[404362612,1770077441487,-151.0,0.00010616,2]
[404362613,1770077441497,-151.0,0.00010616,2]
[404362614,1770077441506,-151.0,0.00010616,2]
[404362615,1770077441515,-151.0,0.00010616,2]
[404362616,1770077441524,-151.0,0.00010616,2]
[404362617,1770077441533,-151.0,0.00010616,2]
[404362618,1770077441543,-151.0,0.00010616,2]
[404362619,1770077441552,-151.0,0.00010616,2]
[404362620,1770077441562,-151.0,0.00010616,2]
[404362621,1770077441571,-200.0,0.00010616,2]
[404362622,1770077441580,-151.0,0.00010616,2]
[404362623,1770077441589,-500.0,0.00010616,2]
[404362624,1770077441599,-500.0,0.00010616,2]
[404362625,1770077441608,-151.0,0.00010616,2]
[404362626,1770077441617,-500.0,0.00010616,2]
[404362627,1770077441626,-151.0,0.00010616,2]
[404362628,1770077441635,-500.0,0.00010616,2]
[404362629,1770077441645,-500.0,0.00010616,2]
[404362630,1770077441654,-151.0,0.00010616,2]
[404362631,1770077441664,-500.0,0.00010616,2]
[404362632,1770077441685,-151.0,0.00010616,2]
[404362633,1770077441696,-500.0,0.00010616,2]
[404362634,1770077441705,-151.0,0.00010616,2]
[404362635,1770077441715,-500.0,0.00010616,2]
[404362636,1770077441724,-151.0,0.00010616,2]
[404362637,1770077441733,-500.0,0.00010616,2]
[404362638,1770077441743,-151.0,0.00010616,2]
[404362639,1770077441752,-500.0,0.00010616,2]
[404362640,1770077441762,-151.0,0.00010616,2]
[404362641,1770077441771,-500.0,0.00010616,2]
[404362642,1770077441785,-151.0,0.00010616,2]
[404362643,1770077441796,-500.0,0.00010616,2]
[404362644,1770077441806,-151.0,0.00010616,2]
[404362645,1770077441815,-151.0,0.00010616,2]
[404362646,1770077441826,-500.0,0.00010616,2]
[404362647,1770077441836,-500.0,0.00010616,2]
[404362648,1770077441845,-500.0,0.00010616,2]
[404362649,1770077441859,-500.0,0.00010616,2]
[404362650,1770077441871,-500.0,0.00010616,2]
[404362651,1770077441880,-500.0,0.00010616,2]
[404362652,1770077441890,-500.0,0.00010616,2]
[404362653,1770077441899,-500.0,0.00010616,2]
[404362654,1770077441911,-500.0,0.00010616,2]
[404362655,1770077441921,-500.0,0.00010616,2]
[404362656,1770077441931,-500.0,0.00010616,2]
[404362657,1770077441942,-200.0,0.00010616,2]
[404362658,1770077441952,-5588.804,0.00010621,2]
[404362659,1770077441962,-478.707,0.00010621,2]
[404362660,1770077441971,-1000.0,0.00010622,2]
[404362661,1770077441981,-1000.0,0.00010622,2]
[404362662,1770077441990,-1000.0,0.00010622,2]
[404362663,1770077441999,-1121.64801251,0.00010622,2]
[404362664,1770077442008,-1000.0,0.00010622,2]
[404362665,1770077442018,-1000.0,0.00010622,2]
[404362666,1770077442027,-1000.0,0.00010622,2]
[404362667,1770077442036,-1000.0,0.00010622,2]
[404362668,1770077442046,-1005.56383771,0.00010622,2]
[404362669,1770077442056,-1000.0,0.00010622,2]
[404362670,1770077442065,-1000.0,0.00010622,2]
[404362671,1770077442074,-245.04092473,0.00010622,2]
[404362672,1770077442083,-1000.0,0.00010622,2]
[404362673,1770077442092,-500.0,0.00010622,2]
[404362674,1770077442102,-490.75391952,0.00010622,2]
[404362675,1770077442111,-1000.0,0.00010622,2]
[404362676,1770077442120,-1000.0,0.00010622,2]
[404362677,1770077442129,-1000.0,0.00010622,2]
[404362678,1770077442138,-1000.0,0.00010622,2]
[404362679,1770077442147,-1000.0,0.00010622,2]
[404362680,1770077442156,-1000.0,0.00010622,2]
[404362681,1770077442165,-1000.0,0.00010622,2]
[404362682,1770077442175,-543.53042842,0.00010622,2]
[404362683,1770077442184,-1000.0,0.00010622,2]
[404362684,1770077442193,-1000.0,0.00010622,2]
[404362685,1770077442202,-1000.0,0.00010622,2]
[404362686,1770077442212,-510.87393165,0.00010622,2]
[404362687,1770077442221,-656.95111861,0.00010622,2]
[404362688,1770077442231,-1000.0,0.00010622,2]
[404362689,1770077442242,-1000.0,0.00010622,2]
[404362690,1770077442251,-259.40505883,0.00010622,2]
[404362691,1770077442261,-278.43207959,0.00010627,2]
[404362692,1770077442271,-514.0,0.00010627,2]
[404362693,1770077442281,-500.0,0.00010627,2]
[404362694,1770077442290,-1600.0,0.00010628,2]
[404362695,1770077442299,-930.0,0.0001067,2]
[404362696,1770077442309,-453.0,0.0001067,2]
[404362697,1770077442318,-500.0,0.0001067,2]
[404362698,1770077442328,-500.0,0.0001067,2]
[404362699,1770077442337,-500.0,0.0001067,2]
[404362700,1770077442346,-1370.0,0.0001067,2]
[404362701,1770077442356,-691.0,0.0001067,2]
[404362702,1770077442366,-500.0,0.0001067,2]
[404362703,1770077442375,-500.0,0.0001067,2]
[404362704,1770077442384,-466.0,0.0001067,2]
[404362705,1770077442394,-514.0,0.00010682,2]
[404362706,1770077442403,-500.0,0.00010682,2]
[404362707,1770077442412,-930.0,0.00010725,2]
[404362708,1770077442422,-453.0,0.00010725,2]
[404362709,1770077442432,-500.0,0.00010725,2]
[404362710,1770077442441,-500.0,0.00010725,2]
[404362711,1770077442451,-500.0,0.00010725,2]
[404362712,1770077442459,-1370.0,0.00010725,2]
[404362713,1770077442469,-691.0,0.00010725,2]
[404362714,1770077442478,-500.0,0.00010725,2]
[404362715,1770077442488,-500.0,0.00010725,2]
[404362716,1770077442497,-466.0,0.00010725,2]
[404362717,1770077442506,-514.0,0.00010736,2]
[404362718,1770077442515,-166.66,0.00010759,2]
[404362719,1770077442524,-930.0,0.0001078,2]
[404362720,1770077442533,-453.0,0.0001078,2]
[404362721,1770077442545,-500.0,0.0001078,2]
[404362722,1770077442560,-500.0,0.0001078,2]
[404362723,1770077442569,-500.0,0.0001078,2]
[404362724,1770077442578,-1370.0,0.0001078,2]
[404362725,1770077442588,-691.0,0.0001078,2]
[404362726,1770077442597,-500.0,0.0001078,2]
[404362727,1770077442606,-500.0,0.0001078,2]
[404362728,1770077442615,-466.0,0.0001078,2]
[404362729,1770077442624,-500.0,0.00010795,2]
[404362730,1770077442633,-930.0,0.00010834,2]
[404362731,1770077442643,-453.0,0.00010834,2]
[404362732,1770077442652,-500.0,0.00010834,2]
[404362733,1770077442661,-500.0,0.00010834,2]
[404362734,1770077442670,-500.0,0.00010834,2]
[404362735,1770077442679,-1370.0,0.00010834,2]
[404362736,1770077442688,-691.0,0.00010834,2]
[404362737,1770077442697,-500.0,0.00010834,2]
[404362738,1770077442706,-500.0,0.00010834,2]
[404362739,1770077442715,-466.0,0.00010834,2]
[404362740,1770077442724,-255.0,0.0001086,2]
[404362741,1770077442734,-420.0,0.0001086,2]
[404362742,1770077442743,-420.0,0.0001086,2]
[404362743,1770077442752,-1680.0,0.0001086,2]
[404362744,1770077442761,-2500.0,0.00010871,2]
[404362745,1770077442771,-930.0,0.00010889,2]
[404362746,1770077442783,-453.0,0.00010889,2]
[404362747,1770077442794,-500.0,0.00010889,2]
[404362748,1770077442803,-500.0,0.00010889,2]
[404362749,1770077442813,-186.26916348,0.00010889,2]
[404362750,1770077442823,-1370.0,0.00010889,2]
[404362751,1770077442833,-691.0,0.00010889,2]
[404362752,1770077442842,-283.08294419,0.00010889,2]
[404362753,1770077442853,-500.0,0.00010889,2]
[404362754,1770077442863,-466.0,0.00010889,2]
[404362755,1770077442872,-11308.27724113,0.000109,2]
[404362756,1770077442882,-2977.0383428,0.00010901,2]
[404362757,1770077442891,-6286.0,0.00010932,2]
[404362758,1770077442902,-930.0,0.00010944,2]